bitfinex/quotes_SOLUSD_20260125
["timestamp","ask_amount","ask_price","bid_price","bid_amount"]
[1769374898259,4.49908554,118.58,118.54,8.4356169]
[1769374898563,4.2817737,118.57,118.54,14.81412395]
[1769374898764,10.66028075,118.56,118.51,4.48745066]
[1769374898936,10.66028075,118.56,118.52,6.37850705]
[1769374898937,4.2817737,118.55,118.52,6.37850705]
[1769374899260,4.2817737,118.55,118.51,6.57850705]
[1769374899651,6.37850705,118.54,118.51,0.2]
[1769374899860,4.2817737,118.53,118.51,0.2]
[1769374900362,6.37850705,118.53,118.49,10.66595771]
[1769374900760,5.34408856,118.57,118.5,4.39088685]
[1769374901060,5.34408856,118.57,118.45,42.20956174]
[1769374901061,23.42,118.56,118.52,6.37850705]
[1769374901252,6.37850705,118.57,118.52,6.37850705]
[1769374901457,23.42,118.57,118.54,6.37850705]
[1769374901660,23.42,118.57,118.53,10.7693939]
[1769374902161,6.37850705,118.58,118.53,10.7693939]
[1769374902338,23.42,118.57,118.53,10.7693939]
[1769374902663,6.59455108,118.55,118.51,4.39088685]
[1769374902860,6.37850705,118.54,118.51,4.39088685]
[1769374903240,6.59455108,118.55,118.51,4.39088685]
[1769374903441,6.59455108,118.55,118.52,8.43731966]
[1769374904160,6.37850705,118.55,118.52,8.43731966]
[1769374905370,0.21604403,118.58,118.53,4.39088685]
[1769374905553,6.59455108,118.6,118.55,10.7693939]
[1769374905862,6.37850705,118.59,118.55,10.7693939]
[1769374906062,6.37850705,118.59,118.56,8.4345479]
[1769374906267,6.59455108,118.6,118.56,12.82543475]
[1769374906443,30.01455108,118.6,118.56,12.82543475]
[1769374906642,30.01455108,118.6,118.56,8.4345479]
[1769374906972,6.59455108,118.62,118.58,4.39088685]
[1769374907173,6.37850705,118.63,118.58,10.7693939]
[1769374907476,23.42,118.62,118.58,10.7693939]
[1769374907665,23.42,118.62,118.56,8.4345479]
[1769374907666,0.21604403,118.61,118.56,29.52091767]
[1769374907861,6.59455108,118.6,118.56,12.82543475]
[1769374908362,23.42,118.62,118.56,12.82543475]
[1769374908363,6.59455108,118.59,118.56,8.4345479]
[1769374908967,6.37850705,118.58,118.55,8.43490406]
[1769374909170,0.21604403,118.57,118.54,8.43563861]
[1769374909466,0.21604403,118.57,118.55,8.43516433]
[1769374909769,30.01455108,118.61,118.56,19.20366129]
[1769374911070,30.01455108,118.61,118.56,40.29003106]
[1769374911962,0.21604403,118.63,118.58,4.39088685]
[1769374912155,23.63604403,118.63,118.59,10.7693939]
[1769374912364,23.42,118.63,118.59,19.20140451]
[1769374912542,23.42,118.63,118.6,4.39088685]
[1769374913663,29.79850705,118.63,118.6,4.39088685]
[1769374913869,6.37850705,118.61,118.57,19.20253213]
[1769374914173,6.59455108,118.6,118.57,8.43313823]
[1769374914353,6.59455108,118.59,118.54,31.85802601]
[1769374914663,6.59455108,118.59,118.55,8.43509848]
[1769374915246,6.37850705,118.6,118.56,8.43449009]
[1769374915447,5.34408856,118.63,118.59,6.37850705]
[1769374915655,6.59455108,118.64,118.59,6.37850705]
[1769374915958,6.37850705,118.62,118.58,4.39088685]
[1769374916152,23.42,118.65,118.57,6.37850705]
[1769374916153,6.37850705,118.61,118.57,6.37850705]
[1769374916361,12.02213933,118.6,118.56,12.82537694]
[1769374916671,6.59455108,118.61,118.56,19.20388399]
[1769374916866,5.64388058,118.6,118.56,19.20388399]
[1769374917668,12.02238763,118.6,118.56,19.20388399]
[1769374917875,6.37850705,118.6,118.56,19.20388399]
[1769374918170,6.37850705,118.6,118.56,12.82537694]
[1769374918372,5.65285825,118.59,118.56,12.82537694]
[1769374920152,5.65285825,118.59,118.56,4.39088685]
[1769374920353,5.66225668,118.58,118.56,4.39088685]
[1769374920673,5.6627632,118.57,118.55,12.82589891]
[1769374920873,6.37850705,118.58,118.55,12.82589891]
[1769374921069,6.37850705,118.59,118.55,12.82589891]
[1769374921275,5.66257642,118.58,118.56,12.82525061]
[1769374921572,6.37850705,118.61,118.57,4.39088685]
[1769374921779,29.06310253,118.6,118.57,4.39088685]
[1769374922069,12.31960712,118.63,118.58,4.39088685]
[1769374922070,12.53565115,118.63,118.58,4.39088685]
[1769374922381,23.61604403,118.62,118.58,4.39088685]
[1769374922668,6.37850705,118.61,118.58,4.39088685]
[1769374922870,29.99455108,118.62,118.58,4.39088685]
[1769374923169,23.4,118.62,118.59,4.39088685]
[1769374923368,6.59455108,118.66,118.61,10.7693939]
[1769374923570,29.79850705,118.67,118.62,10.7693939]
[1769374923761,30.01455108,118.67,118.62,10.7693939]
[1769374923970,30.01455108,118.67,118.62,19.19930817]
[1769374924160,21.06248893,118.7,118.62,19.19930817]
[1769374924161,0.21604403,118.7,118.63,10.7693939]
[1769374924357,6.59455108,118.68,118.63,10.7693939]
[1769374924552,6.37850705,118.67,118.63,4.39088685]
[1769374924755,6.37850705,118.65,118.61,12.82157185]
[1769374925780,0.21604403,118.66,118.61,12.82157185]
[1769374925781,6.37850705,118.64,118.61,4.39088685]
[1769374926276,6.37850705,118.64,118.61,12.82186827]
[1769374926782,6.37850705,118.64,118.61,4.39088685]
[1769374926954,6.37850705,118.63,118.59,12.82298162]
[1769374927159,6.37850705,118.62,118.59,12.82298162]
[1769374927578,6.39103056,118.61,118.57,4.39088685]
[1769374928456,6.39103056,118.61,118.57,12.82434951]
[1769374929268,6.39103056,118.6,118.57,12.82434951]
[1769374930379,5.34408856,118.64,118.59,4.39088685]
[1769374930887,5.56013259,118.64,118.59,4.39088685]
[1769374932676,0.21604403,118.63,118.58,4.39088685]
[1769374933961,6.39103056,118.61,118.57,12.82465379]
[1769374934166,6.39103056,118.61,118.58,4.39088685]
[1769374934561,6.39103056,118.61,118.58,12.82400909]
[1769374935070,0.21604403,118.63,118.58,4.39088685]
[1769374935373,12.26441687,118.62,118.58,4.39088685]
[1769374935689,6.39103056,118.63,118.59,4.39088685]
[1769374935872,5.65831851,118.62,118.59,4.39088685]
[1769374936280,6.39103056,118.65,118.6,6.39103056]
[1769374936470,0.21604403,118.66,118.58,8.43294168]
[1769374936471,6.60707459,118.66,118.61,10.78191741]
[1769374936672,5.65648855,118.65,118.62,4.39088685]
[1769374937097,5.65648855,118.65,118.62,10.78191741]
[1769374937417,23.4,118.67,118.63,10.78191741]
[1769374937704,0.21604403,118.7,118.65,6.39103056]
[1769374937899,12.04431847,118.71,118.66,10.78191741]
[1769374938204,6.39103056,118.71,118.66,10.78191741]
[1769374938570,104.70707459,118.72,118.67,12.81750053]
[1769374938805,104.70707459,118.72,118.68,4.39088685]
[1769374938989,6.60707459,118.72,118.68,4.39088685]
[1769374939190,23.71604403,118.73,118.68,4.39088685]
[1769374939487,12.24935828,118.72,118.68,4.39088685]
[1769374939691,6.60707459,118.72,118.67,14.81764424]
[1769374940072,6.39103056,118.71,118.67,6.39103056]
[1769374940280,6.39103056,118.71,118.66,14.81819986]
[1769374940611,10.58345088,118.7,118.65,14.81888345]
[1769374940910,10.58345088,118.67,118.62,6.39103056]
[1769374941203,8.4247103,118.7,118.62,8.42988358]
[1769374941204,10.58345088,118.66,118.62,8.42988358]
[1769374941793,10.58345088,118.66,118.62,12.65478382]
[1769374941978,4.19242032,118.66,118.62,19.04581438]
[1769374942179,10.58345088,118.66,118.62,19.04581438]
[1769374942603,6.39103056,118.67,118.62,19.04581438]
[1769374942777,10.58345088,118.67,118.62,10.6159308]
[1769374943100,6.39103056,118.66,118.62,10.6159308]
[1769374943907,6.39103056,118.65,118.6,10.6159308]
[1769374944116,10.58345088,118.64,118.6,4.22490024]
[1769374944281,10.58345088,118.64,118.6,12.65644703]
[1769374944609,10.58345088,118.64,118.6,19.04747759]
[1769374945108,10.58345088,118.64,118.6,12.65644703]
[1769374945478,10.58345088,118.63,118.58,10.6159308]
[1769374945680,4.19242032,118.62,118.58,4.22490024]
[1769374945892,6.39103056,118.6,118.56,4.22490024]
[1769374946098,10.58345088,118.6,118.56,12.65906557]
[1769374946308,4.19242032,118.6,118.56,12.65906557]
[1769374946507,4.19242032,118.6,118.56,19.05009613]
[1769374946709,10.58345088,118.6,118.56,4.22490024]
[1769374946909,10.58345088,118.59,118.54,19.05157751]
[1769374947428,6.39103056,118.58,118.54,12.66054695]
[1769374947785,10.58345088,118.59,118.54,19.05157751]
[1769374948285,10.58345088,118.59,118.54,10.6159308]
[1769374949496,10.58345088,118.59,118.54,19.05186417]
[1769374950092,33.98345088,118.61,118.56,10.6159308]
[1769374950496,23.4,118.61,118.57,10.6159308]
[1769374951182,29.79103056,118.61,118.57,4.22490024]
[1769374951693,10.58345088,118.6,118.55,19.05079106]
[1769374952007,10.58345088,118.6,118.55,10.6159308]
[1769374952211,6.39103056,118.59,118.55,4.22490024]
[1769374952514,10.58345088,118.6,118.55,10.6159308]
[1769374953093,10.58345088,118.6,118.55,19.05060522]
[1769374953493,10.58345088,118.6,118.56,4.19951979]
[1769374953894,4.19242032,118.6,118.56,10.59055035]
[1769374955317,10.58345088,118.6,118.56,10.59055035]
[1769374956316,4.19242032,118.6,118.56,10.59055035]
[1769374956622,4.10891409,118.64,118.59,10.59055035]
[1769374956799,5.6517703,118.63,118.59,10.59055035]
[1769374957592,10.49994465,118.64,118.59,10.59055035]
[1769374957993,10.49994465,118.64,118.6,4.19951979]
[1769374958918,4.10891409,118.64,118.6,4.19951979]
[1769374959114,4.10891409,118.64,118.6,10.59055035]
[1769374959620,12.4271221,118.69,118.59,8.43230184]
[1769374959621,108.59994465,118.67,118.62,10.59055035]
[1769374959801,5.65081417,118.66,118.62,10.59055035]
[1769374960927,16.15075882,118.66,118.62,4.19951979]
[1769374961219,5.65081417,118.65,118.61,6.39103056]
[1769374961516,5.65081417,118.65,118.61,10.59055035]
[1769374962220,4.10891409,118.68,118.63,10.59055035]
[1769374962446,9.7599012,118.67,118.63,6.39103056]
[1769374962628,6.39103056,118.68,118.63,6.39103056]
[1769374962629,5.65098711,118.66,118.63,19.02006867]
[1769374962825,10.49994465,118.68,118.64,4.19951979]
[1769374962994,5.6506158,118.67,118.64,10.59055035]
[1769374963201,5.6506158,118.67,118.65,4.19951979]
[1769374963506,27.50891409,118.7,118.66,4.19951979]
[1769374963507,33.89994465,118.7,118.66,4.19951979]
[1769374963706,5.64903527,118.69,118.66,4.19951979]
[1769374963927,12.04006583,118.69,118.65,6.39103056]
[1769374964224,6.39103056,118.69,118.65,6.39103056]
[1769374964611,6.39103056,118.69,118.65,10.59055035]
[1769374965808,10.49994465,118.69,118.65,4.19951979]
[1769374969602,6.39103056,118.68,118.65,4.19951979]
[1769374970298,10.49994465,118.68,118.64,6.39103056]
[1769374970494,10.49994465,118.66,118.61,6.39103056]
[1769374970714,6.39103056,118.65,118.61,10.59055035]
[1769374970998,6.39103056,118.65,118.61,4.19951979]
[1769374971200,4.10891409,118.66,118.61,4.19951979]
[1769374971404,6.39103056,118.65,118.61,10.59055035]
[1769374971799,10.49994465,118.66,118.61,10.59055035]
[1769374972127,10.49994465,118.65,118.61,4.19951979]
[1769374972820,4.10891409,118.67,118.62,10.59055035]
[1769374973024,10.49994465,118.66,118.62,4.19951979]
[1769374973534,6.39103056,118.69,118.65,4.19951979]
[1769374973721,10.49994465,118.7,118.65,10.59055035]
[1769374973927,4.10891409,118.69,118.65,10.59055035]
[1769374974531,10.49994465,118.69,118.65,10.59055035]
[1769374974918,10.49994465,118.68,118.63,10.59055035]
[1769374975116,10.49994465,118.68,118.64,4.19951979]
[1769374975733,4.10891409,118.65,118.61,12.63044465]
[1769374976030,4.10891409,118.65,118.61,19.02147521]
[1769374976231,10.49994465,118.66,118.62,4.19951979]
[1769374977533,8.42604733,118.68,118.6,19.02196619]
[1769374977534,10.49994465,118.65,118.6,19.02196619]
[1769374977840,10.49994465,118.65,118.61,4.19951979]
[1769374981341,16.14763824,118.64,118.59,10.59055035]
[1769374981536,10.49994465,118.64,118.59,10.59055035]
[1769374981729,6.39103056,118.63,118.59,4.19951979]
[1769374982035,6.39103056,118.61,118.57,10.59055035]
[1769374982213,6.39103056,118.61,118.58,4.19951979]
[1769374982411,6.39103056,118.62,118.58,4.19951979]
[1769374982821,10.49994465,118.62,118.58,4.19951979]
[1769374983337,10.63718201,118.61,118.57,4.39113932]
[1769374983648,4.24615145,118.64,118.6,10.78216988]
[1769374984024,10.63718201,118.64,118.6,4.39113932]
[1769374984219,10.63718201,118.63,118.59,4.39113932]
[1769374984428,4.24615145,118.62,118.59,4.39113932]
[1769374984641,4.24615145,118.62,118.58,4.39113932]
[1769374984828,10.63718201,118.62,118.58,4.39113932]
[1769374985026,10.63718201,118.61,118.57,4.39113932]
[1769374985341,4.24615145,118.59,118.54,4.39113932]
[1769374985526,4.24615145,118.58,118.54,19.21765902]
[1769374985720,10.63718201,118.57,118.52,19.21924864]
[1769374985914,5.34408856,118.61,118.51,14.82885113]
[1769374985915,10.63718201,118.56,118.51,14.82885113]
[1769374986234,4.24615145,118.57,118.52,19.21941838]
[1769374986441,4.24615145,118.56,118.52,10.78216988]
[1769374986632,4.24615145,118.56,118.53,6.39103056]
[1769374986828,4.24615145,118.56,118.52,10.78216988]
[1769374987034,10.63718201,118.55,118.5,19.22086389]
[1769374987443,4.24615145,118.55,118.51,6.39103056]
[1769374987629,10.63718201,118.55,118.5,19.22086389]
[1769374987947,4.24615145,118.55,118.51,6.39103056]
[1769374988347,10.63718201,118.57,118.52,10.78216988]
[1769374988644,4.24615145,118.57,118.53,10.78216988]
[1769374989041,4.24615145,118.57,118.54,6.39103056]
[1769374989227,4.24615145,118.62,118.56,6.39103056]
[1769374989428,4.24615145,118.62,118.57,6.39103056]
[1769374989429,4.24615145,118.6,118.57,6.39103056]
[1769374989752,10.63884577,118.59,118.55,4.39113932]
[1769374990127,4.24615145,118.59,118.55,10.78383364]
[1769374990626,10.63884577,118.59,118.55,4.39113932]
[1769374991022,10.70495044,118.63,118.58,10.78383364]
[1769374991023,4.24615145,118.63,118.58,10.78383364]
[1769374991218,34.03884577,118.65,118.6,6.39269432]
[1769374991443,5.64217318,118.64,118.61,4.39113932]
[1769374991643,4.24615145,118.67,118.63,10.78383364]
[1769374992252,4.24615145,118.69,118.65,6.39269432]
[1769374992748,10.63884577,118.69,118.64,10.78383364]
[1769374993222,4.24615145,118.68,118.64,10.78383364]
[1769374993623,10.63884577,118.69,118.64,10.78383364]
[1769374993828,4.24615145,118.68,118.64,10.78383364]
[1769374994044,10.63884577,118.68,118.64,4.39113932]
[1769374994647,4.24615145,118.68,118.64,4.39113932]
[1769374995018,10.63884577,118.68,118.64,4.39113932]
[1769374995243,4.24615145,118.7,118.66,6.39269432]
[1769374995445,4.24615145,118.7,118.66,10.78383364]
[1769374996226,23.4,118.71,118.67,10.6040229]
[1769374996552,27.84436164,118.71,118.67,10.6040229]
[1769374996726,4.44436164,118.71,118.67,10.6040229]
[1769374996928,10.83705596,118.71,118.67,4.21132858]
[1769374997949,0.1,118.73,118.71,4.21132858]
[1769374998148,5.73622769,118.73,118.7,6.39269432]
[1769374998333,0.1,118.73,118.7,6.39269432]
[1769374998533,0.1,118.73,118.71,10.6040229]
[1769374998854,0.1,118.73,118.71,4.21132858]
[1769374999554,0.1,118.73,118.7,10.6040229]
[1769374999937,0.1,118.73,118.7,4.21132858]
[1769375000442,6.39269432,118.71,118.68,4.21132858]
[1769375001538,10.83705596,118.71,118.67,4.21132858]
[1769375002460,10.83705596,118.71,118.67,12.63785295]
[1769375002761,0.1,118.73,118.68,4.21132858]
[1769375002942,12.12171544,118.73,118.69,4.21132858]
[1769375003259,10.93705596,118.73,118.69,4.21132858]
[1769375003952,4.44436164,118.76,118.72,10.6040229]
[1769375005042,4.54436164,118.77,118.72,10.6040229]
[1769375005237,4.44436164,118.74,118.7,4.21132858]
[1769375005441,10.83705596,118.74,118.7,4.21132858]
[1769375005854,6.39269432,118.73,118.69,4.21132858]
[1769375006043,10.83705596,118.74,118.69,10.6040229]
[1769375006860,4.44436164,118.71,118.67,10.6040229]
[1769375007056,10.83705596,118.72,118.68,4.21132858]
[1769375007250,6.39269432,118.72,118.67,6.39269432]
[1769375007550,10.83705596,118.71,118.66,19.03109256]
[1769375008253,4.44436164,118.69,118.65,8.42788462]
[1769375008457,10.83705596,118.69,118.64,12.64013646]
[1769375008865,6.39269432,118.68,118.64,12.64013646]
[1769375009194,10.83705596,118.68,118.64,4.21132858]
[1769375009349,6.39269432,118.67,118.64,4.21132858]
[1769375009671,10.83705596,118.75,118.67,4.21132858]
[1769375009841,10.83705596,118.75,118.7,10.6040229]
[1769375010043,10.83705596,118.75,118.7,4.21132858]
[1769375010241,6.39269432,118.74,118.7,4.21132858]
[1769375011375,10.83705596,118.75,118.7,12.63542453]
[1769375011950,4.44436164,118.74,118.7,12.63542453]
[1769375012568,10.83705596,118.74,118.69,19.02906995]
[1769375012874,23.48,118.77,118.74,4.21132858]
[1769375013172,10.59280779,118.77,118.72,6.39269432]
[1769375013347,10.49280779,118.76,118.71,4.17024025]
[1769375013549,10.49280779,118.76,118.71,12.59396175]
[1769375013750,10.49280779,118.74,118.69,10.56293457]
[1769375014171,4.10011347,118.74,118.69,18.98811227]
[1769375014371,4.10011347,118.74,118.7,10.56293457]
[1769375015076,4.10011347,118.74,118.7,4.17024025]
[1769375015883,10.49280779,118.74,118.7,4.17024025]
[1769375016248,0.1,118.77,118.64,42.1424751]
[1769375016454,0.1,118.77,118.74,10.56293457]
[1769375017066,0.1,118.77,118.74,4.17024025]
[1769375018374,10.49280779,118.76,118.72,4.17024025]
[1769375018577,4.10011347,118.76,118.71,18.98680304]
[1769375019368,4.10011347,118.76,118.72,10.56293457]
[1769375019774,4.10011347,118.76,118.72,18.98561636]
[1769375020273,4.20011347,118.77,118.73,6.39269432]
[1769375021066,0.1,118.77,118.74,4.17024025]
[1769375021675,4.10011347,118.76,118.72,12.59292204]
[1769375021869,10.49280779,118.76,118.72,4.17024025]
[1769375022178,10.59280779,118.77,118.73,4.17024025]
[1769375022675,6.39269432,118.76,118.73,4.17024025]
[1769375022982,10.49280779,118.76,118.72,8.42317785]
[1769375023280,4.10011347,118.76,118.72,4.17024025]
[1769375023656,4.10011347,118.74,118.71,8.42389015]
[1769375024558,4.10011347,118.76,118.72,4.17024025]
[1769375024778,10.49280779,118.76,118.72,4.17024025]
[1769375024972,4.10011347,118.75,118.71,8.42389015]
[1769375025282,10.49280779,118.73,118.68,10.56293457]
[1769375025456,10.49280779,118.73,118.68,12.59570241]
[1769375025969,10.49280779,118.73,118.68,18.98839673]
[1769375026362,4.10011347,118.73,118.69,4.17024025]
[1769375026877,33.87280779,118.75,118.7,10.56293457]
[1769375027175,4.10011347,118.78,118.72,4.17024025]
[1769375027478,4.10011347,118.78,118.68,72.46321072]
[1769375027479,6.39269432,118.76,118.73,4.17024025]
[1769375027658,6.39269432,118.76,118.7,6.39269432]
[1769375027858,10.49280779,118.76,118.71,4.17024025]
[1769375028066,6.39269432,118.75,118.71,12.59394884]
[1769375028790,10.49280779,118.73,118.69,4.17024025]
[1769375029107,10.49280779,118.73,118.69,12.59504924]
[1769375029260,6.39269432,118.73,118.69,12.59504924]
[1769375029460,10.49280779,118.74,118.69,12.59504924]
[1769375029683,10.49280779,118.73,118.69,12.59504924]
[1769375030566,10.49280779,118.73,118.69,4.17024025]
[1769375031099,10.49280779,118.73,118.69,12.59552717]
[1769375032866,4.10011347,118.73,118.69,12.59552717]
[1769375033061,10.49280779,118.73,118.69,12.59552717]
[1769375033882,6.39269432,118.72,118.69,12.59552717]
[1769375034789,10.49280779,118.73,118.69,12.59552717]
[1769375035391,6.39269432,118.74,118.7,4.17024025]
[1769375035670,10.49280779,118.74,118.7,4.17024025]
[1769375035993,6.39269432,118.75,118.7,4.17024025]
[1769375036394,5.65093044,118.74,118.7,4.17024025]
[1769375036703,10.89269432,118.79,118.73,6.39269432]
[1769375037006,10.89269432,118.78,118.73,6.39269432]
[1769375037181,4.5,118.78,118.73,6.39269432]
[1769375037380,4.5,118.78,118.74,8.42176183]
[1769375038276,4.5,118.79,118.75,6.39269432]
[1769375038774,4.39596663,118.84,118.78,6.39269432]
[1769375038975,8.41114808,118.89,118.74,100.30906413]
[1769375038976,4.5,118.89,118.83,6.39269432]
[1769375039277,6.39269432,118.92,118.86,6.39269432]
[1769375039474,4.5,118.9,118.85,6.39269432]
[1769375039686,4.5,118.89,118.84,14.80731235]
[1769375039984,9.73689489,118.94,118.8,42.08457884]
[1769375039985,6.39269432,118.9,118.85,18.97667729]
[1769375040298,6.39269432,118.9,118.85,14.8065999]
[1769375040805,6.39269432,118.9,118.85,6.39269432]
[1769375040979,6.39269432,118.89,118.84,18.97733569]
[1769375041183,29.42674149,118.94,118.84,4.17024025]
[1769375041479,6.39269432,118.88,118.83,8.4152891]
[1769375041785,6.39269432,118.89,118.84,8.41461637]
[1769375041991,6.39269432,118.89,118.82,21.03929726]
[1769375041992,4.10011347,118.87,118.82,14.80832863]
[1769375042191,4.10011347,118.85,118.78,4.17024025]
[1769375042391,4.10011347,118.85,118.8,6.39269432]
[1769375043078,4.10011347,118.82,118.77,6.39269432]
[1769375043278,4.48689515,118.84,118.8,6.39269432]
[1769375043675,4.48689515,118.84,118.8,14.81014783]
[1769375043905,4.48689515,118.84,118.8,6.39269432]
[1769375044080,4.48689515,118.8,118.72,10.76836696]
[1769375044285,6.39269432,118.77,118.72,4.37567264]
[1769375044485,6.39269432,118.76,118.72,12.79872688]
[1769375044679,10.87958947,118.78,118.73,19.19078391]
[1769375044987,5.34408856,118.81,118.76,6.39269432]
[1769375044988,10.87958947,118.81,118.76,6.39269432]
[1769375045195,10.87958947,118.81,118.76,10.76836696]
[1769375045586,10.87958947,118.81,118.76,19.18824363]
[1769375046407,10.87958947,118.84,118.78,10.76836696]
[1769375046605,6.39269432,118.83,118.78,10.76836696]
[1769375046796,10.87958947,118.81,118.76,19.18824363]
[1769375047302,10.87958947,118.79,118.74,12.79698177]
[1769375047489,6.39269432,118.78,118.73,12.79810571]
[1769375047695,6.39269432,118.78,118.73,19.19080003]
[1769375048090,10.87958947,118.79,118.73,19.19080003]
[1769375048405,4.48689515,118.79,118.74,10.76836696]
[1769375048905,10.87958947,118.79,118.74,10.76836696]
[1769375049290,10.87958947,118.79,118.74,19.18951795]
[1769375049600,4.48689515,118.83,118.76,10.76836696]
[1769375049793,13.75928416,118.84,118.76,10.76836696]
[1769375049794,6.39269432,118.81,118.76,10.76836696]
[1769375050016,6.39269432,118.8,118.76,4.37567264]
[1769375050313,6.39269432,118.79,118.74,19.18951795]
[1769375050810,6.39269432,118.79,118.74,12.79682363]
[1769375051601,6.37206561,118.79,118.74,12.79682363]
[1769375051915,6.37206561,118.78,118.74,8.42115099]
[1769375052114,6.37206561,118.76,118.71,10.74773825]
[1769375052306,10.70495044,118.84,118.71,10.74773825]
[1769375052307,4.5,118.86,118.75,56.89838139]
[1769375052505,4.5,118.85,118.77,10.85896076]
[1769375052705,4.5,118.84,118.8,6.37206561]
[1769375053014,4.5,118.84,118.79,6.37206561]
[1769375053402,4.5,118.84,118.79,14.79008517]
[1769375053612,4.5,118.83,118.79,14.79008517]
[1769375054115,4.5,118.83,118.78,14.79073512]
[1769375054614,4.48689515,118.78,118.71,4.37567264]
[1769375054928,6.37206561,118.73,118.69,4.37567264]
[1769375055090,6.37206561,118.74,118.69,10.74773825]
[1769375055293,6.37206561,118.74,118.7,4.37567264]
[1769375055495,12.90666381,118.77,118.7,12.79985416]
[1769375055794,12.90666381,118.77,118.71,4.07113256]
[1769375055795,6.37206561,118.74,118.71,4.07113256]
[1769375057617,6.37206561,118.75,118.72,8.42318059]
[1769375058118,6.37206561,118.75,118.71,4.07113256]
[1769375058119,6.37206561,118.74,118.71,12.49471548]
[1769375061938,6.37206561,118.72,118.69,8.42469987]
[1769375062224,6.37206561,118.72,118.69,12.49583243]
[1769375062600,6.37206561,118.73,118.69,12.49583243]
[1769375062926,6.37206561,118.72,118.69,8.42469987]
[1769375063718,6.37206561,118.7,118.67,4.07113256]
[1769375064318,6.37206561,118.7,118.67,12.49742612]
[1769375065301,6.37206561,118.69,118.65,4.07113256]
[1769375065516,6.37206561,118.69,118.63,21.0728464]
[1769375065517,6.37206561,118.67,118.64,8.42873439]
[1769375065839,6.37206561,118.67,118.62,6.57206561]
[1769375065840,6.37206561,118.65,118.62,0.2]
[1769375066125,6.37206561,118.66,118.62,12.70093406]
[1769375066714,6.37206561,118.65,118.62,12.70093406]
[1769375067133,6.37206561,118.65,118.62,4.27113256]
[1769375067312,6.37206561,118.64,118.62,0.2]
[1769375067507,4.45249847,118.66,118.62,8.62999397]
[1769375067715,6.37206561,118.65,118.62,8.62999397]
[1769375068025,10.82456408,118.66,118.62,8.62999397]
[1769375068536,6.37206561,118.65,118.62,8.62999397]
[1769375069510,6.37206561,118.64,118.62,0.2]
[1769375070010,23.38,118.7,118.58,12.50381126]
[1769375070011,10.82456408,118.63,118.58,12.50381126]
[1769375070324,6.37206561,118.61,118.58,12.50381126]
[1769375070530,6.37206561,118.61,118.58,4.07113256]
[1769375070702,6.37206561,118.61,118.57,12.50471861]
[1769375071020,6.37206561,118.61,118.57,4.07113256]
[1769375071228,4.45249847,118.62,118.57,12.50474408]
[1769375071423,6.37206561,118.61,118.57,12.50474408]
[1769375071931,6.37206561,118.6,118.57,12.50474408]
[1769375072732,6.37206561,118.61,118.57,12.50474408]
[1769375073508,4.45249847,118.62,118.57,33.58933546]
[1769375073809,6.37206561,118.61,118.57,33.58933546]
[1769375074541,6.37206561,118.61,118.57,12.50474408]
[1769375078451,8.42886489,118.64,118.57,12.50474408]
[1769375078452,6.37206561,118.65,118.6,10.80334735]
[1769375078741,10.69686577,118.63,118.58,10.80334735]
[1769375079033,6.37206561,118.62,118.58,4.43128174]
[1769375079607,6.37206561,118.61,118.57,33.94948464]
[1769375080540,10.69686577,118.62,118.57,33.94948464]
[1769375081321,10.69686577,118.62,118.57,40.32155025]
[1769375082434,10.69686577,118.62,118.58,4.43128174]
[1769375082636,10.69686577,118.62,118.58,12.86398677]
[1769375083816,10.69686577,118.62,118.58,8.43270503]
[1769375084834,4.32480016,118.62,118.58,12.86398677]
[1769375085139,10.69686577,118.62,118.58,12.86398677]
[1769375086058,10.69686577,118.6,118.57,8.4336894]
[1769375086362,10.69686577,118.6,118.56,13.06556334]
[1769375086663,5.36086188,118.67,118.56,0.2]
[1769375086664,10.69686577,118.58,118.56,0.2]
[1769375086825,10.69686577,118.57,118.56,0.2]
[1769375087027,10.69686577,118.58,118.56,0.2]
[1769375088945,10.69686577,118.57,118.56,0.2]
[1769375089545,10.69686577,118.57,118.53,12.86763694]
[1769375089758,50.84884662,118.62,118.52,8.43712153]
[1769375089759,10.69686577,118.56,118.52,8.43712153]
[1769375090069,6.37206561,118.55,118.51,12.86903837]
[1769375090631,10.69686577,118.55,118.51,12.86903837]
[1769375090845,4.28155215,118.51,118.48,28.62560268]
[1769375091057,6.37206561,118.49,118.45,0.2]
[1769375091240,6.37206561,118.48,118.45,4.7]
[1769375092447,6.37206561,118.47,118.45,4.7]
[1769375092631,6.37206561,118.47,118.45,0.2]
[1769375093367,6.37206561,118.48,118.45,4.7]
[1769375094368,6.37206561,118.49,118.46,4.5]
[1769375095461,31.85716608,118.53,118.46,4.5]
[1769375095660,6.37206561,118.51,118.47,4.5]
[1769375095861,6.37206561,118.5,118.47,4.5]
[1769375096562,25.34,118.59,118.47,4.5]
[1769375096756,57.18206561,118.62,118.46,14.81344094]
[1769375096757,5.36086188,118.57,118.49,4.5]
[1769375096949,6.37206561,118.52,118.49,4.5]
[1769375097151,5.36086188,118.55,118.49,4.5]